[Event "*** Titled Tuesday Blitz"]
[Site "Chess.com"]
[Date "2020.05.12"]
[Round "1"]
[White "FM_VS99"]
[Black "GMStefanova"]
[Result "1/2-1/2"]
[WhiteElo "2384"]
[BlackElo "2698"]
[TimeControl "180+1"]
[EndTime "10:06:29 PDT"]
[Termination "Game drawn by repetition"]

1. c4 {[%clk 0:03:00.9]} 1... g6 {[%clk 0:02:58]} 2. d4 {[%clk 0:02:59.2]} 2...
Nf6 {[%clk 0:02:55.9]} 3. f3 {[%clk 0:02:59.1]} 3... c5 {[%clk 0:02:53.5]} 4. e4
{[%clk 0:02:59.5]} 4... cxd4 {[%clk 0:02:52.8]} 5. Qxd4 {[%clk 0:02:59.5]} 5...
Nc6 {[%clk 0:02:51.8]} 6. Qd1 {[%clk 0:02:56.9]} 6... Bg7 {[%clk 0:02:50.9]} 7.
Nc3 {[%clk 0:02:57]} 7... O-O {[%clk 0:02:50]} 8. Be3 {[%clk 0:02:57.6]} 8... d6
{[%clk 0:02:47.4]} 9. Nge2 {[%clk 0:02:57.9]} 9... Be6 {[%clk 0:02:40.2]} 10.
Nf4 {[%clk 0:02:54.3]} 10... Bd7 {[%clk 0:02:39.5]} 11. Be2 {[%clk 0:02:51.4]}
11... Rc8 {[%clk 0:02:37.7]} 12. Qd2 {[%clk 0:02:39.2]} 12... Ne5 {[%clk
0:02:25.9]} 13. b3 {[%clk 0:02:37.8]} 13... a6 {[%clk 0:02:11.2]} 14. O-O {[%clk
0:02:30.9]} 14... Bc6 {[%clk 0:02:06.2]} 15. Rac1 {[%clk 0:02:27.3]} 15... Nfd7
{[%clk 0:02:05.5]} 16. Ncd5 {[%clk 0:02:11.6]} 16... Nc5 {[%clk 0:01:51.4]} 17.
Rfd1 {[%clk 0:01:56]} 17... Re8 {[%clk 0:01:38.2]} 18. Nc3 {[%clk 0:01:37]}
18... Qa5 {[%clk 0:01:32.4]} 19. Rb1 {[%clk 0:01:18.1]} 19... Ne6 {[%clk
0:01:28.4]} 20. Nxe6 {[%clk 0:01:14]} 20... fxe6 {[%clk 0:01:28.1]} 21. Bd4
{[%clk 0:01:13.1]} 21... b5 {[%clk 0:01:25.6]} 22. cxb5 {[%clk 0:01:10.8]} 22...
axb5 {[%clk 0:01:24.8]} 23. Nxb5 {[%clk 0:01:09.1]} 23... Qxd2 {[%clk
0:01:20.3]} 24. Rxd2 {[%clk 0:01:10]} 24... Nd7 {[%clk 0:01:15]} 25. Bxg7 {[%clk
0:01:05.1]} 25... Kxg7 {[%clk 0:01:14.8]} 26. Nd4 {[%clk 0:01:05.5]} 26... e5
{[%clk 0:01:14.7]} 27. Nxc6 {[%clk 0:01:04.1]} 27... Rxc6 {[%clk 0:01:14.6]} 28.
Bb5 {[%clk 0:01:01.1]} 28... Rc7 {[%clk 0:01:14.7]} 29. Bxd7 {[%clk 0:01:00.9]}
29... Rxd7 {[%clk 0:01:14.2]} 30. b4 {[%clk 0:00:58.8]} 30... Ra8 {[%clk
0:01:12.6]} 31. b5 {[%clk 0:00:40.6]} 31... Rb7 {[%clk 0:01:12.3]} 32. Kf2
{[%clk 0:00:36.3]} 32... Ra3 {[%clk 0:01:09]} 33. Rdb2 {[%clk 0:00:33.8]} 33...
Rb6 {[%clk 0:01:07.2]} 34. Rc2 {[%clk 0:00:31.3]} 34... Ra5 {[%clk 0:01:06.1]}
35. Rcb2 {[%clk 0:00:31]} 35... Ra3 {[%clk 0:01:06.1]} 36. Rd1 {[%clk
0:00:28.2]} 36... Kf6 {[%clk 0:01:04.5]} 37. Rc1 {[%clk 0:00:26.1]} 37... Ra5
{[%clk 0:01:02.4]} 38. Rcb1 {[%clk 0:00:25.4]} 38... Ra3 {[%clk 0:01:02.4]} 39.
Ke2 {[%clk 0:00:25.1]} 39... Ke6 {[%clk 0:01:00.3]} 40. Rc1 {[%clk 0:00:25.5]}
40... Ra5 {[%clk 0:00:59.6]} 41. Rcb1 {[%clk 0:00:25.5]} 41... Ra3 {[%clk
0:00:59.9]} 42. Rc1 {[%clk 0:00:25]} 42... Ra5 {[%clk 0:00:59.6]} 43. Rcb1
{[%clk 0:00:25.5]} 43... Ra3 {[%clk 0:00:59.7]} 1/2-1/2

[Event "*** Titled Tuesday Blitz"]
[Site "Chess.com"]
[Date "2020.05.12"]
[Round "1"]
[White "Zq1"]
[Black "kai_nov"]
[Result "0-1"]
[WhiteElo "2557"]
[BlackElo "2255"]
[TimeControl "180+1"]
[EndTime "10:06:29 PDT"]
[Termination "kai_nov won by resignation"]

1. d4 {[%clk 0:02:56]} 1... d5 {[%clk 0:02:57.4]} 2. c4 {[%clk 0:02:55]} 2... e6
{[%clk 0:02:57]} 3. Nc3 {[%clk 0:02:54.3]} 3... c6 {[%clk 0:02:56.9]} 4. e3
{[%clk 0:02:53.1]} 4... Nf6 {[%clk 0:02:55.9]} 5. Nf3 {[%clk 0:02:52.1]} 5...
Nbd7 {[%clk 0:02:55]} 6. Qc2 {[%clk 0:02:51.5]} 6... Bd6 {[%clk 0:02:54]} 7. b3
{[%clk 0:02:50.9]} 7... O-O {[%clk 0:02:49.1]} 8. Be2 {[%clk 0:02:50.6]} 8... e5
{[%clk 0:02:33.8]} 9. cxd5 {[%clk 0:02:49.1]} 9... cxd5 {[%clk 0:02:31]} 10. Nb5
{[%clk 0:02:48]} 10... Bb4+ {[%clk 0:02:28.2]} 11. Bd2 {[%clk 0:02:47]} 11...
Bxd2+ {[%clk 0:02:22.9]} 12. Nxd2 {[%clk 0:02:46.5]} 12... a6 {[%clk 0:02:19.2]}
13. dxe5 {[%clk 0:02:39.7]} 13... Nxe5 {[%clk 0:02:17.5]} 14. Nd4 {[%clk
0:02:36.2]} 14... Bg4 {[%clk 0:02:11.4]} 15. f3 {[%clk 0:02:34]} 15... Rc8
{[%clk 0:02:08]} 16. Qb2 {[%clk 0:02:32.4]} 16... Bd7 {[%clk 0:02:04.3]} 17. O-O
{[%clk 0:02:32]} 17... Qb6 {[%clk 0:01:58.7]} 18. Rac1 {[%clk 0:02:28.4]} 18...
Rfe8 {[%clk 0:01:57.7]} 19. Rxc8 {[%clk 0:02:26.1]} 19... Bxc8 {[%clk
0:01:56.1]} 20. Qc3 {[%clk 0:02:11.8]} 20... Bd7 {[%clk 0:01:54.8]} 21. Re1
{[%clk 0:02:03.5]} 21... Nc6 {[%clk 0:01:54.4]} 22. Nxc6 {[%clk 0:01:46.7]}
22... bxc6 {[%clk 0:01:28.8]} 23. Kf2 {[%clk 0:01:42.5]} 23... c5 {[%clk
0:00:58.7]} 24. Rc1 {[%clk 0:01:35.5]} 24... d4 {[%clk 0:00:58.3]} 25. exd4
{[%clk 0:01:33.6]} 25... cxd4 {[%clk 0:00:57.8]} 26. Qd3 {[%clk 0:01:15.4]}
26... Bf5 {[%clk 0:00:25.6]} 27. Qxf5 {[%clk 0:00:58.5]} 27... d3+ {[%clk
0:00:24.9]} 28. Kg3 {[%clk 0:00:51.4]} 28... dxe2 {[%clk 0:00:20.2]} 29. Ne4
{[%clk 0:00:40.1]} 29... Nxe4+ {[%clk 0:00:16.8]} 30. Qxe4 {[%clk 0:00:39.8]}
30... Qb8+ {[%clk 0:00:14.6]} 0-1

[Event "*** Titled Tuesday Blitz"]
[Site "Chess.com"]
[Date "2020.05.12"]
[Round "1"]
[White "Perecke"]
[Black "fm_magua"]
[Result "0-1"]
[WhiteElo "2201"]
[BlackElo "2541"]
[TimeControl "180+1"]
[EndTime "10:06:29 PDT"]
[Termination "fm_magua won by resignation"]

1. e4 {[%clk 0:03:00.9]} 1... c5 {[%clk 0:03:00.2]} 2. Nf3 {[%clk 0:02:57.7]}
2... Nc6 {[%clk 0:02:59.3]} 3. d4 {[%clk 0:02:57.7]} 3... cxd4 {[%clk 0:02:58]}
4. Nxd4 {[%clk 0:02:58.6]} 4... e5 {[%clk 0:02:58.5]} 5. Nb3 {[%clk 0:02:56.4]}
5... Nf6 {[%clk 0:02:58.3]} 6. Bd3 {[%clk 0:02:55.1]} 6... h6 {[%clk 0:02:57]}
7. c4 {[%clk 0:02:55.3]} 7... Be7 {[%clk 0:02:57.1]} 8. Nc3 {[%clk 0:02:55.1]}
8... O-O {[%clk 0:02:57.7]} 9. Be3 {[%clk 0:02:54.2]} 9... d6 {[%clk 0:02:58.1]}
10. f3 {[%clk 0:02:54.6]} 10... Be6 {[%clk 0:02:58.3]} 11. O-O {[%clk
0:02:53.3]} 11... Na5 {[%clk 0:02:57.5]} 12. Nd2 {[%clk 0:02:46.1]} 12... Rc8
{[%clk 0:02:55.8]} 13. b3 {[%clk 0:02:46.1]} 13... b6 {[%clk 0:02:56.2]} 14. Rc1
{[%clk 0:02:45.9]} 14... Nb7 {[%clk 0:02:56.3]} 15. b4 {[%clk 0:02:43.6]} 15...
Qd7 {[%clk 0:02:48.3]} 16. Nd5 {[%clk 0:02:37]} 16... Bxd5 {[%clk 0:02:44]} 17.
cxd5 {[%clk 0:02:37.9]} 17... Rxc1 {[%clk 0:02:39]} 18. Qxc1 {[%clk 0:02:38.8]}
18... Rc8 {[%clk 0:02:39.2]} 19. Qb2 {[%clk 0:02:38.1]} 19... Nh5 {[%clk
0:02:35]} 20. Rc1 {[%clk 0:02:30.7]} 20... Bg5 {[%clk 0:02:35.1]} 21. Bxg5
{[%clk 0:02:28.1]} 21... hxg5 {[%clk 0:02:36]} 22. g3 {[%clk 0:02:25.4]} 22...
g4 {[%clk 0:02:24.2]} 23. Be2 {[%clk 0:02:22.9]} 23... gxf3 {[%clk 0:02:20.8]}
24. Nxf3 {[%clk 0:02:19.5]} 24... Nf6 {[%clk 0:02:20.3]} 25. a4 {[%clk
0:02:16.8]} 25... a5 {[%clk 0:02:12.8]} 26. Bb5 {[%clk 0:02:11.7]} 26... Qd8
{[%clk 0:02:09.6]} 27. Rc6 {[%clk 0:01:46.9]} 27... axb4 {[%clk 0:02:06.2]} 28.
Qxb4 {[%clk 0:01:33.4]} 28... Nc5 {[%clk 0:02:06.4]} 29. Nd2 {[%clk 0:01:22.2]}
29... Ra8 {[%clk 0:02:01.6]} 30. Nc4 {[%clk 0:01:14.6]} 30... Nfxe4 {[%clk
0:01:58.4]} 31. Rxb6 {[%clk 0:01:01.5]} 31... Qf6 {[%clk 0:01:55.3]} 32. Qb2
{[%clk 0:00:56.2]} 32... Nxa4 {[%clk 0:01:49.6]} 33. Bxa4 {[%clk 0:00:54.6]}
33... Rxa4 {[%clk 0:01:49.6]} 34. Nxd6 {[%clk 0:00:33.6]} 34... Qf3 {[%clk
0:01:06.5]} 35. Nxe4 {[%clk 0:00:12]} 35... Rxe4 {[%clk 0:01:05.2]} 36. Rb8+
{[%clk 0:00:11.9]} 36... Kh7 {[%clk 0:01:05.5]} 37. Qc2 {[%clk 0:00:12]} 37...
g6 {[%clk 0:01:04.5]} 38. Rb1 {[%clk 0:00:11.8]} 38... Re2 {[%clk 0:01:03.1]}
0-1

[Event "*** Titled Tuesday Blitz"]
[Site "Chess.com"]
[Date "2020.05.12"]
[Round "1"]
[White "Chess2019Player"]
[Black "MPGM"]
[Result "0-1"]
[WhiteElo "2181"]
[BlackElo "2529"]
[TimeControl "180+1"]
[EndTime "10:06:30 PDT"]
[Termination "MPGM won on time"]

1. Nf3 {[%clk 0:02:59.5]} 1... b6 {[%clk 0:02:57.3]} 2. g3 {[%clk 0:02:58.6]}
2... Bb7 {[%clk 0:02:56.9]} 3. Bg2 {[%clk 0:02:59.5]} 3... f5 {[%clk 0:02:56.7]}
4. O-O {[%clk 0:02:59.3]} 4... Nf6 {[%clk 0:02:56.8]} 5. d3 {[%clk 0:02:56.6]}
5... g6 {[%clk 0:02:54.8]} 6. Nc3 {[%clk 0:02:54.4]} 6... Bg7 {[%clk 0:02:55.1]}
7. Bg5 {[%clk 0:02:53.7]} 7... O-O {[%clk 0:02:55]} 8. Re1 {[%clk 0:02:45.4]}
8... Qe8 {[%clk 0:02:45.4]} 9. e4 {[%clk 0:02:40.9]} 9... fxe4 {[%clk
0:02:43.7]} 10. dxe4 {[%clk 0:02:41.8]} 10... e5 {[%clk 0:02:38.3]} 11. Nd2
{[%clk 0:02:06.7]} 11... d6 {[%clk 0:02:24]} 12. f4 {[%clk 0:01:43.2]} 12...
Nbd7 {[%clk 0:02:07]} 13. Bxf6 {[%clk 0:01:41.1]} 13... Nxf6 {[%clk 0:02:04.5]}
14. Nd5 {[%clk 0:01:41.6]} 14... Nxd5 {[%clk 0:02:02.9]} 15. exd5 {[%clk
0:01:42.5]} 15... Qb5 {[%clk 0:01:57.4]} 16. fxe5 {[%clk 0:00:48.7]} 16... Bxe5
{[%clk 0:01:54.2]} 17. b3 {[%clk 0:00:40.1]} 17... Bxd5 {[%clk 0:01:38.6]} 18.
Bxd5+ {[%clk 0:00:17.7]} 18... Qxd5 {[%clk 0:01:39.5]} 19. Ne4 {[%clk
0:00:17.7]} 19... Qd4+ {[%clk 0:01:35.5]} 20. Kg2 {[%clk 0:00:11.9]} 20... Rae8
{[%clk 0:01:10.5]} 21. Qxd4 {[%clk 0:00:10.3]} 21... Bxd4 {[%clk 0:01:11.4]} 22.
Rad1 {[%clk 0:00:10.6]} 22... Be5 {[%clk 0:01:11]} 23. Ng5 {[%clk 0:00:10]}
23... h6 {[%clk 0:01:08.1]} 24. Nf3 {[%clk 0:00:09]} 24... Bc3 {[%clk
0:01:08.7]} 25. Rxe8 {[%clk 0:00:07.6]} 25... Rxe8 {[%clk 0:01:09.6]} 26. Rd3
{[%clk 0:00:03.6]} 26... Bf6 {[%clk 0:01:10.2]} 27. Kf2 {[%clk 0:00:03.1]} 27...
Kf7 {[%clk 0:01:09.1]} 28. Nd2 {[%clk 0:00:03]} 28... Re5 {[%clk 0:01:05.6]} 29.
Nc4 {[%clk 0:00:01.6]} 29... Rf5+ {[%clk 0:01:05.1]} 30. Kg2 {[%clk 0:00:01.6]}
30... h5 {[%clk 0:00:57.9]} 31. Ne3 {[%clk 0:00:02]} 31... Rc5 {[%clk
0:00:54.7]} 0-1

[Event "*** Titled Tuesday Blitz"]
[Site "Chess.com"]
[Date "2020.05.12"]
[Round "1"]
[White "crazy_machine"]
[Black "RobertPrieb2007"]
[Result "0-1"]
[WhiteElo "2595"]
[BlackElo "2310"]
[TimeControl "180+1"]
[EndTime "10:06:31 PDT"]
[Termination "RobertPrieb2007 won by checkmate"]

1. d4 {[%clk 0:03:00.1]} 1... Nf6 {[%clk 0:02:59.2]} 2. Nc3 {[%clk 0:03:00.6]}
2... d5 {[%clk 0:02:57.7]} 3. Bf4 {[%clk 0:03:01.1]} 3... g6 {[%clk 0:02:52.3]}
4. e3 {[%clk 0:03:00.3]} 4... Bg7 {[%clk 0:02:51]} 5. h4 {[%clk 0:03:00.9]} 5...
O-O {[%clk 0:02:41.7]} 6. h5 {[%clk 0:03:00.4]} 6... Nxh5 {[%clk 0:02:38.5]} 7.
Rxh5 {[%clk 0:03:00.1]} 7... gxh5 {[%clk 0:02:37.9]} 8. Qxh5 {[%clk 0:03:01]}
8... e6 {[%clk 0:02:34.7]} 9. Bd3 {[%clk 0:03:00.5]} 9... f5 {[%clk 0:02:31.3]}
10. Nf3 {[%clk 0:03:00.6]} 10... Nd7 {[%clk 0:02:27.5]} 11. O-O-O {[%clk
0:02:58.3]} 11... Nf6 {[%clk 0:02:24.1]} 12. Qh2 {[%clk 0:02:53.6]} 12... Ng4
{[%clk 0:02:10.1]} 13. Qg3 {[%clk 0:02:53.3]} 13... c5 {[%clk 0:02:04.2]} 14.
Rh1 {[%clk 0:02:16.4]} 14... Qf6 {[%clk 0:01:59]} 15. dxc5 {[%clk 0:01:47]}
15... Bd7 {[%clk 0:01:55.1]} 16. Bd6 {[%clk 0:01:25]} 16... Rfe8 {[%clk
0:01:50.7]} 17. Nd4 {[%clk 0:01:24.6]} 17... a6 {[%clk 0:01:46.3]} 18. f3 {[%clk
0:01:18.9]} 18... Nxe3 {[%clk 0:01:41.1]} 19. Nde2 {[%clk 0:01:07.3]} 19... Bc6
{[%clk 0:01:34.1]} 20. Nf4 {[%clk 0:01:01.8]} 20... e5 {[%clk 0:01:22.2]} 21.
Nh5 {[%clk 0:01:01.4]} 21... Qh6 {[%clk 0:01:20.9]} 22. Kb1 {[%clk 0:00:55.2]}
22... Qg6 {[%clk 0:01:15.3]} 23. Qh3 {[%clk 0:00:49.4]} 23... Bh6 {[%clk
0:01:11.7]} 24. g4 {[%clk 0:00:47.5]} 24... e4 {[%clk 0:01:08.7]} 25. gxf5
{[%clk 0:00:46.2]} 25... Nxf5 {[%clk 0:01:08.1]} 26. fxe4 {[%clk 0:00:42.7]}
26... dxe4 {[%clk 0:01:04.1]} 27. Bc4+ {[%clk 0:00:33.8]} 27... Kh8 {[%clk
0:01:03.8]} 28. Nf4 {[%clk 0:00:18.3]} 28... Bxf4 {[%clk 0:01:01.1]} 29. Bxf4
{[%clk 0:00:19.2]} 29... e3 {[%clk 0:00:57.1]} 30. Re1 {[%clk 0:00:19.6]} 30...
Rad8 {[%clk 0:00:51.9]} 31. Qh2 {[%clk 0:00:19.8]} 31... Rd2 {[%clk 0:00:45.1]}
32. Be5+ {[%clk 0:00:20]} 32... Ng7 {[%clk 0:00:41.8]} 33. Qf4 {[%clk
0:00:20.1]} 33... Qxc2+ {[%clk 0:00:38.2]} 34. Ka1 {[%clk 0:00:20]} 34... Qxb2#
{[%clk 0:00:38.6]} 0-1

[Event "*** Titled Tuesday Blitz"]
[Site "Chess.com"]
[Date "2020.05.12"]
[Round "1"]
[White "TregubovP"]
[Black "Rhinos1"]
[Result "1-0"]
[WhiteElo "2522"]
[BlackElo "2171"]
[TimeControl "180+1"]
[EndTime "10:06:31 PDT"]
[Termination "TregubovP won by resignation"]

1. e4 {[%clk 0:02:59.1]} 1... e5 {[%clk 0:02:59.7]} 2. Nf3 {[%clk 0:02:55.9]}
2... Nc6 {[%clk 0:02:59.7]} 3. Bb5 {[%clk 0:02:55.6]} 3... a6 {[%clk 0:02:58.4]}
4. Ba4 {[%clk 0:02:55.9]} 4... d6 {[%clk 0:02:58.5]} 5. d4 {[%clk 0:02:53.1]}
5... b5 {[%clk 0:02:56.1]} 6. Bb3 {[%clk 0:02:47.8]} 6... Nxd4 {[%clk
0:02:55.8]} 7. Nxd4 {[%clk 0:02:42.9]} 7... exd4 {[%clk 0:02:56.7]} 8. Bd5
{[%clk 0:02:29.8]} 8... Rb8 {[%clk 0:02:52.5]} 9. Qxd4 {[%clk 0:02:13.5]} 9...
Nf6 {[%clk 0:02:51.2]} 10. Bc6+ {[%clk 0:02:13]} 10... Bd7 {[%clk 0:02:50.9]}
11. Bxd7+ {[%clk 0:02:12.3]} 11... Qxd7 {[%clk 0:02:51.8]} 12. O-O {[%clk
0:02:10.2]} 12... Be7 {[%clk 0:02:51.3]} 13. Bg5 {[%clk 0:02:05.1]} 13... O-O
{[%clk 0:02:48.1]} 14. e5 {[%clk 0:02:01]} 14... Ne8 {[%clk 0:02:36.6]} 15. Bf4
{[%clk 0:01:52.1]} 15... Qf5 {[%clk 0:02:17.6]} 16. Re1 {[%clk 0:01:31.4]} 16...
Rd8 {[%clk 0:01:54.5]} 17. Nc3 {[%clk 0:01:28.3]} 17... Qxc2 {[%clk 0:01:41.1]}
18. Nd5 {[%clk 0:01:25.8]} 18... Rd7 {[%clk 0:01:25.7]} 19. Rac1 {[%clk
0:01:16.1]} 19... Qf5 {[%clk 0:01:12.8]} 20. exd6 {[%clk 0:01:11.1]} 20... Bxd6
{[%clk 0:01:08.3]} 21. Bxd6 {[%clk 0:01:10.4]} 21... Nxd6 {[%clk 0:01:00]} 22.
Ne7+ {[%clk 0:01:10.4]} 22... Rxe7 {[%clk 0:00:56.1]} 23. Rxe7 {[%clk 0:01:11]}
23... Qg5 {[%clk 0:00:56.4]} 24. Rexc7 {[%clk 0:01:05.3]} 24... Nc4 {[%clk
0:00:54.7]} 25. f4 {[%clk 0:00:58.2]} 25... Qg4 {[%clk 0:00:51.9]} 26. b3 {[%clk
0:00:56.4]} 26... Na3 {[%clk 0:00:33.4]} 27. h3 {[%clk 0:00:55.3]} 27... Qe2
{[%clk 0:00:32.6]} 28. Rc8 {[%clk 0:00:51.3]} 28... Re8 {[%clk 0:00:23.4]} 29.
Qd7 {[%clk 0:00:35.4]} 1-0

[Event "*** Titled Tuesday Blitz"]
[Site "Chess.com"]
[Date "2020.05.12"]
[Round "1"]
[White "ShieldingOff"]
[Black "serhanberat_ozdemir"]
[Result "0-1"]
[WhiteElo "2018"]
[BlackElo "2488"]
[TimeControl "180+1"]
[EndTime "10:06:31 PDT"]
[Termination "serhanberat_ozdemir won on time"]

1. d4 {[%clk 0:03:00.5]} 1... Nf6 {[%clk 0:02:55.5]} 2. c4 {[%clk 0:02:59.5]}
2... g6 {[%clk 0:02:53.7]} 3. Nc3 {[%clk 0:02:58.6]} 3... Bg7 {[%clk 0:02:53.7]}
4. e4 {[%clk 0:02:58.1]} 4... d6 {[%clk 0:02:51.6]} 5. Be2 {[%clk 0:02:57.2]}
5... O-O {[%clk 0:02:44.2]} 6. Be3 {[%clk 0:02:56.9]} 6... c5 {[%clk 0:02:39.1]}
7. d5 {[%clk 0:02:55.4]} 7... e6 {[%clk 0:02:38.4]} 8. h3 {[%clk 0:02:47.2]}
8... exd5 {[%clk 0:02:38]} 9. exd5 {[%clk 0:02:46.8]} 9... Re8 {[%clk
0:02:31.1]} 10. Nf3 {[%clk 0:02:46]} 10... a6 {[%clk 0:02:31]} 11. a4 {[%clk
0:02:43.7]} 11... Nbd7 {[%clk 0:02:16.2]} 12. O-O {[%clk 0:02:42.5]} 12... Nh5
{[%clk 0:02:11]} 13. Qd2 {[%clk 0:02:33.1]} 13... f5 {[%clk 0:02:08.4]} 14. Bg5
{[%clk 0:02:13]} 14... Bf6 {[%clk 0:02:07.1]} 15. Rfe1 {[%clk 0:02:08.1]} 15...
Ne5 {[%clk 0:02:02.6]} 16. Nxe5 {[%clk 0:02:05.2]} 16... Bxg5 {[%clk 0:02:01.6]}
17. Qd1 {[%clk 0:01:36.6]} 17... Rxe5 {[%clk 0:01:58.2]} 18. Bxh5 {[%clk
0:01:35.8]} 18... gxh5 {[%clk 0:01:57.7]} 19. Rxe5 {[%clk 0:01:33.4]} 19... dxe5
{[%clk 0:01:58.5]} 20. Qxh5 {[%clk 0:01:33]} 20... Qf6 {[%clk 0:01:50.5]} 21.
Re1 {[%clk 0:01:27.9]} 21... Bd7 {[%clk 0:01:43.2]} 22. a5 {[%clk 0:01:18.4]}
22... Qg6 {[%clk 0:01:39]} 23. Qf3 {[%clk 0:01:11]} 23... Bf6 {[%clk 0:01:37.5]}
24. d6 {[%clk 0:00:54.1]} 24... Bc6 {[%clk 0:01:29.7]} 25. Nd5 {[%clk 0:00:54]}
25... Rd8 {[%clk 0:01:23.6]} 26. Qb3 {[%clk 0:00:10.5]} 26... Rxd6 {[%clk
0:01:20.2]} 27. Rxe5 {[%clk 0:00:06.4]} 27... Bxe5 {[%clk 0:01:19.2]} 28. Ne7+
{[%clk 0:00:06.2]} 28... Kf7 {[%clk 0:01:19]} 29. Nxg6 {[%clk 0:00:06.4]} 29...
hxg6 {[%clk 0:01:19.9]} 30. g3 {[%clk 0:00:06]} 30... Be4 {[%clk 0:01:14.8]} 31.
f4 {[%clk 0:00:05.9]} 31... Rd3 {[%clk 0:01:14]} 32. Qb6 {[%clk 0:00:04.4]}
32... Bd4+ {[%clk 0:01:13.4]} 33. Kf1 {[%clk 0:00:04.2]} 33... Bf3 {[%clk
0:01:06.4]} 34. Qc7+ {[%clk 0:00:03.8]} 34... Kg8 {[%clk 0:01:06.9]} 35. Qd8+
{[%clk 0:00:02.9]} 35... Kh7 {[%clk 0:01:07.5]} 36. Qe7+ {[%clk 0:00:02.4]}
36... Bg7 {[%clk 0:01:07.8]} 37. Kf2 {[%clk 0:00:01.2]} 37... Be4 {[%clk
0:01:07.2]} 0-1

[Event "*** Titled Tuesday Blitz"]
[Site "Chess.com"]
[Date "2020.05.12"]
[Round "1"]
[White "AtabayevSaparmyrat"]
[Black "MFBerna"]
[Result "1-0"]
[WhiteElo "2733"]
[BlackElo "2385"]
[TimeControl "180+1"]
[EndTime "10:06:33 PDT"]
[Termination "AtabayevSaparmyrat won on time"]

1. e4 {[%clk 0:02:59.2]} 1... c5 {[%clk 0:02:57.8]} 2. Nf3 {[%clk 0:02:59.3]}
2... Nc6 {[%clk 0:02:56.7]} 3. d4 {[%clk 0:02:59.7]} 3... cxd4 {[%clk
0:02:56.8]} 4. Nxd4 {[%clk 0:03:00.6]} 4... Nf6 {[%clk 0:02:56.3]} 5. Nc3 {[%clk
0:03:00.8]} 5... d6 {[%clk 0:02:55.1]} 6. Bg5 {[%clk 0:03:00.2]} 6... e6 {[%clk
0:02:55]} 7. Qd2 {[%clk 0:02:59.7]} 7... Be7 {[%clk 0:02:53.5]} 8. O-O-O {[%clk
0:02:59.9]} 8... a6 {[%clk 0:02:52.2]} 9. f4 {[%clk 0:02:59.7]} 9... Qc7 {[%clk
0:02:51.7]} 10. Nf3 {[%clk 0:02:56.3]} 10... O-O {[%clk 0:02:49.2]} 11. Bxf6
{[%clk 0:02:51.5]} 11... Bxf6 {[%clk 0:02:46.2]} 12. Qxd6 {[%clk 0:02:47.8]}
12... Qxd6 {[%clk 0:02:42.9]} 13. Rxd6 {[%clk 0:02:47.4]} 13... Be7 {[%clk
0:02:28.4]} 14. Rd1 {[%clk 0:02:39.9]} 14... b5 {[%clk 0:02:26.3]} 15. e5 {[%clk
0:02:36.2]} 15... Bc5 {[%clk 0:02:04.2]} 16. Kb1 {[%clk 0:02:25.2]} 16... Be3
{[%clk 0:02:02.8]} 17. g3 {[%clk 0:02:23.2]} 17... Bb7 {[%clk 0:01:58.6]} 18.
Bd3 {[%clk 0:02:22]} 18... b4 {[%clk 0:01:12.1]} 19. Ne4 {[%clk 0:02:19.8]}
19... Ne7 {[%clk 0:01:04.4]} 20. Rhe1 {[%clk 0:02:17.9]} 20... Bb6 {[%clk
0:01:00.1]} 21. Nfd2 {[%clk 0:02:17.9]} 21... Nf5 {[%clk 0:00:56.8]} 22. Nc4
{[%clk 0:02:15.3]} 22... Bc7 {[%clk 0:00:50.3]} 23. Ned6 {[%clk 0:02:15.5]}
23... Bxd6 {[%clk 0:00:45.2]} 24. Nxd6 {[%clk 0:02:15.7]} 24... Nxd6 {[%clk
0:00:44.3]} 25. exd6 {[%clk 0:02:16.6]} 25... Rfd8 {[%clk 0:00:34.3]} 26. Be4
{[%clk 0:02:16.7]} 26... Ra7 {[%clk 0:00:25.9]} 27. Rd4 {[%clk 0:02:14.5]} 27...
a5 {[%clk 0:00:22.3]} 28. Bxb7 {[%clk 0:02:06.9]} 28... Rxb7 {[%clk 0:00:22.3]}
29. Re5 {[%clk 0:02:07.8]} 29... Ra7 {[%clk 0:00:18.1]} 30. a4 {[%clk 0:01:57]}
30... Kf8 {[%clk 0:00:14.6]} 31. f5 {[%clk 0:01:52.3]} 31... exf5 {[%clk
0:00:13.9]} 32. Rxf5 {[%clk 0:01:53]} 32... Ra6 {[%clk 0:00:11.5]} 33. d7 {[%clk
0:01:51.1]} 33... g6 {[%clk 0:00:10.7]} 34. Rb5 {[%clk 0:01:50]} 34... Ke7
{[%clk 0:00:10.6]} 35. Re5+ {[%clk 0:01:49.8]} 35... Kf6 {[%clk 0:00:10]} 36.
Rdd5 {[%clk 0:01:50.3]} 36... Rxd7 {[%clk 0:00:08.5]} 37. Rxa5 {[%clk
0:01:48.6]} 37... Rd1+ {[%clk 0:00:05.6]} 38. Ka2 {[%clk 0:01:48.6]} 38... Rc6
{[%clk 0:00:06.1]} 39. Rec5 {[%clk 0:01:48.3]} 39... Rcd6 {[%clk 0:00:02.3]} 40.
Rab5 {[%clk 0:01:48.1]} 40... Rh1 {[%clk 0:00:02.7]} 41. h4 {[%clk 0:01:47.1]}
41... Rh2 {[%clk 0:00:02.9]} 42. Rxb4 {[%clk 0:01:46.8]} 42... Rg2 {[%clk
0:00:02.4]} 43. Rf4+ {[%clk 0:01:46]} 1-0

[Event "*** Titled Tuesday Blitz"]
[Site "Chess.com"]
[Date "2020.05.12"]
[Round "1"]
[White "Angel_Hranitel_37"]
[Black "SamuelGhimpu2003"]
[Result "0-1"]
[WhiteElo "2366"]
[BlackElo "2705"]
[TimeControl "180+1"]
[EndTime "10:06:33 PDT"]
[Termination "SamuelGhimpu2003 won by checkmate"]

1. d4 {[%clk 0:03:00.9]} 1... Nf6 {[%clk 0:02:59.6]} 2. Nf3 {[%clk 0:03:00.3]}
2... g6 {[%clk 0:02:59.7]} 3. g3 {[%clk 0:03:00.3]} 3... Bg7 {[%clk 0:03:00.6]}
4. Bg2 {[%clk 0:03:01.2]} 4... O-O {[%clk 0:02:59.7]} 5. O-O {[%clk 0:03:01.9]}
5... d6 {[%clk 0:03:00.6]} 6. Nc3 {[%clk 0:03:02.5]} 6... a6 {[%clk 0:02:58.4]}
7. a4 {[%clk 0:02:57]} 7... Nbd7 {[%clk 0:02:56.2]} 8. e4 {[%clk 0:02:54.9]}
8... c5 {[%clk 0:02:54.8]} 9. dxc5 {[%clk 0:02:53.2]} 9... Nxc5 {[%clk
0:02:54.3]} 10. e5 {[%clk 0:02:46.5]} 10... dxe5 {[%clk 0:02:43.5]} 11. Nxe5
{[%clk 0:02:47.4]} 11... Qc7 {[%clk 0:02:43.4]} 12. Nc4 {[%clk 0:02:44.4]} 12...
Bg4 {[%clk 0:02:37.1]} 13. f3 {[%clk 0:01:47.3]} 13... Be6 {[%clk 0:02:32.5]}
14. Bf4 {[%clk 0:01:46.2]} 14... Qc6 {[%clk 0:02:32.5]} 15. Qe2 {[%clk
0:01:34.9]} 15... Rac8 {[%clk 0:02:24.6]} 16. Be3 {[%clk 0:01:10]} 16... Nxa4
{[%clk 0:02:14.4]} 17. Rxa4 {[%clk 0:01:06.1]} 17... Bxc4 {[%clk 0:02:13.7]} 18.
Qf2 {[%clk 0:00:43.1]} 18... Bxf1 {[%clk 0:02:12.4]} 19. Qxf1 {[%clk 0:00:44]}
19... Rfd8 {[%clk 0:02:07.1]} 20. Rh4 {[%clk 0:00:42.4]} 20... h5 {[%clk
0:02:00.5]} 21. g4 {[%clk 0:00:39.1]} 21... g5 {[%clk 0:01:39.5]} 22. Rh3 {[%clk
0:00:15.1]} 22... h4 {[%clk 0:01:39.6]} 23. Qc1 {[%clk 0:00:14.9]} 23... Nh7
{[%clk 0:01:33.7]} 24. Bxg5 {[%clk 0:00:15.1]} 24... Nxg5 {[%clk 0:01:26]} 25.
Qxg5 {[%clk 0:00:16]} 25... Qb6+ {[%clk 0:01:12]} 26. Kf1 {[%clk 0:00:07.9]}
26... Rxc3 {[%clk 0:01:07.5]} 27. Qxh4 {[%clk 0:00:08.1]} 27... Qb5+ {[%clk
0:00:45.3]} 28. Ke1 {[%clk 0:00:05.6]} 28... Re3+ {[%clk 0:00:45.1]} 29. Kf2
{[%clk 0:00:05.2]} 29... Qe2+ {[%clk 0:00:44.4]} 30. Kg3 {[%clk 0:00:05.8]}
30... Be5# {[%clk 0:00:42.8]} 0-1